[Event "Titled Tuesday Blitz August 08 Early 2023"]
[White "Shohat, Yotam"]
[Black "Kula, Robert"]
[WhiteFideId "2813955"]
[BlackFideId "1101218"]
[WhiteElo "2477"]
[BlackElo "2243"]
[Result "1-0"]
[Round "2"]
[TimeControl "180+1"]
[Date "2023.08.08"]
[WhiteClock "0:01:20"]
[BlackClock "0:00:31"]
[Board "230"]

1. e4 {[%clk 0:03:00]}  e5 {[%clk 0:02:59]} 2. Nf3 {[%clk 0:03:00]}  Nc6 {[%clk 0:02:59]} 3. Bb5 {[%clk 0:02:59]}  Nd4 {[%clk 0:02:59]} 4. Nxd4 {[%clk 0:02:57]}  exd4 {[%clk 0:02:59]} 5. O-O {[%clk 0:02:56]}  Bc5 {[%clk 0:03:00]} 6. d3 {[%clk 0:02:54]}  c6 {[%clk 0:02:59]} 7. Ba4 {[%clk 0:02:53]}  Ne7 {[%clk 0:02:59]} 8. Nd2 {[%clk 0:02:46]}  O-O {[%clk 0:02:58]} 9. f4 {[%clk 0:02:44]}  f5 {[%clk 0:02:57]} 10. Kh1 {[%clk 0:02:35]}  d5 {[%clk 0:02:55]} 11. e5 {[%clk 0:02:22]}  a5 {[%clk 0:02:53]} 12. c3 {[%clk 0:02:17]}  b5 {[%clk 0:02:48]} 13. Bc2 {[%clk 0:02:17]}  a4 {[%clk 0:02:39]} 14. cxd4 {[%clk 0:02:04]}  Bxd4 {[%clk 0:02:39]} 15. Nf3 {[%clk 0:02:05]}  Bb6 {[%clk 0:02:38]} 16. d4 {[%clk 0:02:03]}  Be6 {[%clk 0:02:36]} 17. Bd2 {[%clk 0:01:56]}  Ng6 {[%clk 0:02:24]} 18. Ng5 {[%clk 0:01:52]}  Qe8 {[%clk 0:02:02]} 19. Bb4 {[%clk 0:01:43]}  h6 {[%clk 0:02:02]} 20. Nxe6 {[%clk 0:01:36]}  Qxe6 {[%clk 0:02:01]} 21. Bxf8 {[%clk 0:01:36]}  Nxf8 {[%clk 0:02:00]} 22. Qd3 {[%clk 0:01:34]}  g6 {[%clk 0:01:56]} 23. g4 {[%clk 0:01:32]}  fxg4 {[%clk 0:01:51]} 24. f5 {[%clk 0:01:31]}  gxf5 {[%clk 0:01:51]} 25. Rxf5 {[%clk 0:01:32]}  Qe7 {[%clk 0:01:14]} 26. Rg1 {[%clk 0:01:27]}  Ne6 {[%clk 0:00:52]} 27. Rxg4+ {[%clk 0:01:26]}  Kh8 {[%clk 0:00:52]} 28. Rf6 {[%clk 0:01:22]}  Bxd4 {[%clk 0:00:31]} 29. Rxh6+ {[%clk 0:01:20]}  Qh7 {[%clk 0:00:31]} 30. Rxh7# {[%clk 0:01:20]} 1-0


[Site "https://www.chess.com"]

[Event "Titled Tuesday Blitz August 08 Early 2023"]
[White "Vaglio Munoz, Jaime"]
[Black "AdvanceGuard4"]
[WhiteFideId "6500145"]
[WhiteElo "2225"]
[BlackElo "2474"]
[Result "1-0"]
[Round "2"]
[TimeControl "180+1"]
[Date "2023.08.08"]
[WhiteClock "0:00:13"]
[BlackClock "0:00:00"]
[Board "236"]

1. Nf3 {[%clk 0:03:00]}  Nf6 {[%clk 0:02:58]} 2. c4 {[%clk 0:03:00]}  g6 {[%clk 0:02:56]} 3. b3 {[%clk 0:02:59]}  Bg7 {[%clk 0:02:56]} 4. Bb2 {[%clk 0:02:59]}  c5 {[%clk 0:02:57]} 5. g3 {[%clk 0:02:59]}  O-O {[%clk 0:02:56]} 6. Bg2 {[%clk 0:02:59]}  Nc6 {[%clk 0:02:57]} 7. O-O {[%clk 0:02:58]}  Re8 {[%clk 0:02:57]} 8. d4 {[%clk 0:02:58]}  Ne4 {[%clk 0:02:58]} 9. e3 {[%clk 0:02:56]}  d5 {[%clk 0:02:57]} 10. cxd5 {[%clk 0:02:53]}  Nb4 {[%clk 0:02:47]} 11. Nbd2 {[%clk 0:02:30]}  Nxd2 {[%clk 0:02:25]} 12. Qxd2 {[%clk 0:02:30]}  Qxd5 {[%clk 0:01:57]} 13. Rac1 {[%clk 0:02:14]}  Na6 {[%clk 0:01:39]} 14. Rfe1 {[%clk 0:01:56]}  Qd6 {[%clk 0:01:27]} 15. Ba3 {[%clk 0:01:47]}  Rb8 {[%clk 0:01:25]} 16. dxc5 {[%clk 0:01:43]}  Qxd2 {[%clk 0:01:24]} 17. Nxd2 {[%clk 0:01:44]}  Nc7 {[%clk 0:01:14]} 18. Nc4 {[%clk 0:01:29]}  Be6 {[%clk 0:01:06]} 19. Bb4 {[%clk 0:01:19]}  Na6 {[%clk 0:01:03]} 20. Ba3 {[%clk 0:01:17]}  Nc7 {[%clk 0:00:53]} 21. c6 {[%clk 0:01:16]}  bxc6 {[%clk 0:00:48]} 22. Bxc6 {[%clk 0:01:15]}  Rec8 {[%clk 0:00:45]} 23. Bxe7 {[%clk 0:01:14]}  Nd5 {[%clk 0:00:44]} 24. Bxd5 {[%clk 0:00:49]}  Bxd5 {[%clk 0:00:45]} 25. Nd6 {[%clk 0:00:46]}  Rxc1 {[%clk 0:00:43]} 26. Rxc1 {[%clk 0:00:47]}  Be6 {[%clk 0:00:37]} 27. e4 {[%clk 0:00:46]}  Bd4 {[%clk 0:00:32]} 28. Rd1 {[%clk 0:00:39]}  Bc5 {[%clk 0:00:25]} 29. Kg2 {[%clk 0:00:38]}  a5 {[%clk 0:00:24]} 30. f4 {[%clk 0:00:31]}  a4 {[%clk 0:00:22]} 31. Rc1 {[%clk 0:00:26]}  axb3 {[%clk 0:00:17]} 32. axb3 {[%clk 0:00:25]}  Be3 {[%clk 0:00:17]} 33. Rc3 {[%clk 0:00:24]}  Rxb3 {[%clk 0:00:18]} 34. Rxb3 {[%clk 0:00:19]}  Bxb3 {[%clk 0:00:19]} 35. Kf3 {[%clk 0:00:19]}  Bc5 {[%clk 0:00:17]} 36. Nc8 {[%clk 0:00:18]}  Bd1+ {[%clk 0:00:16]} 37. Kg2 {[%clk 0:00:17]}  Be3 {[%clk 0:00:14]} 38. Bd6 {[%clk 0:00:15]}  Bd4 {[%clk 0:00:10]} 39. Ne7+ {[%clk 0:00:15]}  Kg7 {[%clk 0:00:09]} 40. Nc6 {[%clk 0:00:15]}  Bb6 {[%clk 0:00:08]} 41. Be5+ {[%clk 0:00:15]}  f6 {[%clk 0:00:07]} 42. Bc3 {[%clk 0:00:14]}  h5 {[%clk 0:00:06]} 43. e5 {[%clk 0:00:14]}  fxe5 {[%clk 0:00:05]} 44. Nxe5 {[%clk 0:00:15]}  Kh7 {[%clk 0:00:06]} 45. h3 {[%clk 0:00:15]}  Bb3 {[%clk 0:00:06]} 46. g4 {[%clk 0:00:15]}  Bd5+ {[%clk 0:00:06]} 47. Kg3 {[%clk 0:00:15]}  hxg4 {[%clk 0:00:07]} 48. Nxg4 {[%clk 0:00:13]}  Bc7 {[%clk 0:00:07]} 49. Nf6+ {[%clk 0:00:13]}  Kh6 {[%clk 0:00:05]} 50. Nxd5 {[%clk 0:00:14]}  g5 {[%clk 0:00:06]} 51. Be5 {[%clk 0:00:12]}  gxf4+ {[%clk 0:00:00]} 52. Bxf4+ {[%clk 0:00:13]} 1-0


[Site "https://www.chess.com"]

[Event "Titled Tuesday Blitz August 08 Early 2023"]
[White "Thiel, Thomas"]
[Black "Kuznetsov, Mikhail"]
[WhiteFideId "4615964"]
[BlackFideId "4117190"]
[WhiteElo "2216"]
[BlackElo "2465"]
[Result "0-1"]
[Round "2"]
[TimeControl "180+1"]
[Date "2023.08.08"]
[WhiteClock "0:02:29"]
[BlackClock "0:02:44"]
[Board "239"]

1. e4 {[%clk 0:03:00]}  c6 {[%clk 0:02:59]} 2. d4 {[%clk 0:02:59]}  d5 {[%clk 0:03:00]} 3. exd5 {[%clk 0:02:59]}  cxd5 {[%clk 0:03:01]} 4. c4 {[%clk 0:02:58]}  Nf6 {[%clk 0:03:02]} 5. Nc3 {[%clk 0:02:57]}  g6 {[%clk 0:03:01]} 6. Qb3 {[%clk 0:02:54]}  Bg7 {[%clk 0:03:00]} 7. cxd5 {[%clk 0:02:55]}  O-O {[%clk 0:02:59]} 8. Be2 {[%clk 0:02:55]}  Na6 {[%clk 0:02:58]} 9. Bf3 {[%clk 0:02:53]}  b5 {[%clk 0:02:58]} 10. d6 {[%clk 0:02:47]}  Rb8 {[%clk 0:02:58]} 11. dxe7 {[%clk 0:02:47]}  Qxe7+ {[%clk 0:02:56]} 12. Nge2 {[%clk 0:02:47]}  b4 {[%clk 0:02:52]} 13. Nd1 {[%clk 0:02:34]}  Be6 {[%clk 0:02:45]} 14. Qa3 {[%clk 0:02:29]}  bxa3 {[%clk 0:02:44]} 0-1


[Site "https://www.chess.com"]

[Event "Titled Tuesday Blitz August 08 Early 2023"]
[White "Shuvalov, Evgenij"]
[Black "Petersson, Kjell"]
[WhiteFideId "4187237"]
[BlackFideId "1705148"]
[WhiteElo "2464"]
[BlackElo "2202"]
[Result "1-0"]
[Round "2"]
[TimeControl "180+1"]
[Date "2023.08.08"]
[WhiteClock "0:01:32"]
[BlackClock "0:00:36"]
[Board "240"]

1. d4 {[%clk 0:03:00]}  f5 {[%clk 0:02:59]} 2. g3 {[%clk 0:02:55]}  Nf6 {[%clk 0:02:59]} 3. Nd2 {[%clk 0:02:53]}  e6 {[%clk 0:02:57]} 4. Bg2 {[%clk 0:02:53]}  d5 {[%clk 0:02:56]} 5. Nh3 {[%clk 0:02:52]}  Bd6 {[%clk 0:02:56]} 6. O-O {[%clk 0:02:51]}  O-O {[%clk 0:02:55]} 7. c4 {[%clk 0:02:52]}  c6 {[%clk 0:02:54]} 8. Nf4 {[%clk 0:02:50]}  Bxf4 {[%clk 0:02:53]} 9. gxf4 {[%clk 0:02:50]}  Ne4 {[%clk 0:02:47]} 10. Nf3 {[%clk 0:02:45]}  Nd7 {[%clk 0:02:43]} 11. Qc2 {[%clk 0:02:44]}  Ndf6 {[%clk 0:02:34]} 12. Ne5 {[%clk 0:02:39]}  Qe8 {[%clk 0:02:30]} 13. b3 {[%clk 0:02:30]}  Qh5 {[%clk 0:02:28]} 14. Ba3 {[%clk 0:02:22]}  Rd8 {[%clk 0:02:23]} 15. Be7 {[%clk 0:02:18]}  Bd7 {[%clk 0:01:59]} 16. f3 {[%clk 0:02:14]}  Re8 {[%clk 0:01:42]} 17. Ba3 {[%clk 0:02:11]}  g5 {[%clk 0:01:03]} 18. fxe4 {[%clk 0:02:07]}  fxe4 {[%clk 0:00:55]} 19. fxg5 {[%clk 0:01:59]}  Ng4 {[%clk 0:00:50]} 20. Nxg4 {[%clk 0:01:51]}  Qxg4 {[%clk 0:00:51]} 21. Qd2 {[%clk 0:01:47]}  e5 {[%clk 0:00:47]} 22. dxe5 {[%clk 0:01:42]}  Rxe5 {[%clk 0:00:45]} 23. Qf4 {[%clk 0:01:37]}  Rxg5 {[%clk 0:00:44]} 24. Qf7+ {[%clk 0:01:31]}  Kh8 {[%clk 0:00:36]} 25. Bb2+ {[%clk 0:01:32]} 1-0


[Site "https://www.chess.com"]

[Event "Titled Tuesday Blitz August 08 Early 2023"]
[White "Rozhkov, Viacheslav"]
[Black "Sabar Ethmane Daouda"]
[WhiteFideId "4181484"]
[BlackFideId "19600097"]
[WhiteElo "2462"]
[BlackElo "2199"]
[Result "1-0"]
[Round "2"]
[TimeControl "180+1"]
[Date "2023.08.08"]
[WhiteClock "0:02:25"]
[BlackClock "0:01:18"]
[Board "242"]

1. e4 {[%clk 0:03:00]}  e5 {[%clk 0:02:38]} 2. Nf3 {[%clk 0:03:00]}  Nc6 {[%clk 0:02:38]} 3. d4 {[%clk 0:03:01]}  exd4 {[%clk 0:02:39]} 4. Bc4 {[%clk 0:03:02]}  Nf6 {[%clk 0:02:39]} 5. e5 {[%clk 0:03:00]}  d5 {[%clk 0:02:39]} 6. Bb5 {[%clk 0:03:01]}  Ne4 {[%clk 0:02:39]} 7. Nxd4 {[%clk 0:03:02]}  Bc5 {[%clk 0:02:40]} 8. Be3 {[%clk 0:02:58]}  O-O {[%clk 0:02:37]} 9. Nxc6 {[%clk 0:02:50]}  bxc6 {[%clk 0:02:12]} 10. Bxc5 {[%clk 0:02:50]}  Nxc5 {[%clk 0:02:11]} 11. Bxc6 {[%clk 0:02:51]}  Rb8 {[%clk 0:02:00]} 12. Qxd5 {[%clk 0:02:51]}  Qe7 {[%clk 0:02:00]} 13. O-O {[%clk 0:02:42]}  Rd8 {[%clk 0:01:49]} 14. Qf3 {[%clk 0:02:36]}  Rxb2 {[%clk 0:01:48]} 15. Nc3 {[%clk 0:02:33]}  Rxc2 {[%clk 0:01:37]} 16. Nd5 {[%clk 0:02:33]}  Qxe5 {[%clk 0:01:34]} 17. Rae1 {[%clk 0:02:27]}  Qf5 {[%clk 0:01:18]} 18. Ne7+ {[%clk 0:02:25]} 1-0


[Site "https://www.chess.com"]

[Event "Titled Tuesday Blitz August 08 Early 2023"]
[White "Preobrazhenska_D2011"]
[Black "slidingknight2775"]
[WhiteElo "2182"]
[BlackElo "2461"]
[Result "0-1"]
[Round "2"]
[TimeControl "180+1"]
[Date "2023.08.08"]
[WhiteClock "0:00:00"]
[BlackClock "0:00:09"]
[Board "246"]

1. e4 {[%clk 0:03:00]}  c6 {[%clk 0:02:59]} 2. d4 {[%clk 0:03:00]}  d5 {[%clk 0:02:59]} 3. exd5 {[%clk 0:03:00]}  cxd5 {[%clk 0:03:00]} 4. Nf3 {[%clk 0:03:01]}  Nc6 {[%clk 0:03:00]} 5. c4 {[%clk 0:03:01]}  e6 {[%clk 0:02:58]} 6. Nc3 {[%clk 0:03:00]}  Nf6 {[%clk 0:02:57]} 7. c5 {[%clk 0:03:00]}  Ne4 {[%clk 0:02:48]} 8. Qc2 {[%clk 0:02:54]}  f5 {[%clk 0:02:28]} 9. Bb5 {[%clk 0:02:47]}  Be7 {[%clk 0:02:13]} 10. Ne5 {[%clk 0:02:28]}  Bd7 {[%clk 0:01:58]} 11. Bxc6 {[%clk 0:02:25]}  bxc6 {[%clk 0:01:56]} 12. O-O {[%clk 0:02:21]}  O-O {[%clk 0:01:56]} 13. b4 {[%clk 0:02:13]}  Bf6 {[%clk 0:01:51]} 14. f3 {[%clk 0:01:58]}  Nxc3 {[%clk 0:01:48]} 15. Qxc3 {[%clk 0:01:59]}  Bxe5 {[%clk 0:01:48]} 16. dxe5 {[%clk 0:02:00]}  Bc8 {[%clk 0:01:45]} 17. Rd1 {[%clk 0:01:50]}  Ba6 {[%clk 0:01:35]} 18. a4 {[%clk 0:01:48]}  Qh4 {[%clk 0:01:22]} 19. Rd4 {[%clk 0:01:00]}  Qe7 {[%clk 0:01:09]} 20. Be3 {[%clk 0:00:55]}  Bc4 {[%clk 0:01:07]} 21. Qd2 {[%clk 0:00:53]}  h6 {[%clk 0:00:40]} 22. f4 {[%clk 0:00:53]}  Rab8 {[%clk 0:00:37]} 23. Rb1 {[%clk 0:00:46]}  a6 {[%clk 0:00:30]} 24. Qc3 {[%clk 0:00:39]}  Rb7 {[%clk 0:00:29]} 25. Rxc4 {[%clk 0:00:37]}  dxc4 {[%clk 0:00:29]} 26. Qxc4 {[%clk 0:00:38]}  Rfb8 {[%clk 0:00:23]} 27. Bd2 {[%clk 0:00:33]}  Qd7 {[%clk 0:00:22]} 28. Bc3 {[%clk 0:00:30]}  a5 {[%clk 0:00:16]} 29. b5 {[%clk 0:00:18]}  cxb5 {[%clk 0:00:16]} 30. axb5 {[%clk 0:00:17]}  Rxb5 {[%clk 0:00:16]} 31. Re1 {[%clk 0:00:13]}  Qc6 {[%clk 0:00:15]} 32. Bd4 {[%clk 0:00:11]}  Rb1 {[%clk 0:00:14]} 33. Rxb1 {[%clk 0:00:08]}  Rxb1+ {[%clk 0:00:15]} 34. Kf2 {[%clk 0:00:09]}  Kh7 {[%clk 0:00:16]} 35. Qc2 {[%clk 0:00:06]}  Rb4 {[%clk 0:00:15]} 36. Be3 {[%clk 0:00:06]}  Re4 {[%clk 0:00:15]} 37. Qa2 {[%clk 0:00:04]}  a4 {[%clk 0:00:15]} 38. Qa3 {[%clk 0:00:04]}  Qb5 {[%clk 0:00:14]} 39. Qa2 {[%clk 0:00:04]}  Qb3 {[%clk 0:00:14]} 40. Qe2 {[%clk 0:00:02]}  a3 {[%clk 0:00:10]} 41. Qd2 {[%clk 0:00:03]}  Qxe3+ {[%clk 0:00:06]} 42. Qxe3 {[%clk 0:00:03]}  Rxe3 {[%clk 0:00:07]} 43. Kxe3 {[%clk 0:00:04]}  a2 {[%clk 0:00:07]} 44. c6 {[%clk 0:00:04]}  a1=Q {[%clk 0:00:08]} 45. c7 {[%clk 0:00:00]}  Qa8 {[%clk 0:00:09]} 0-1


[Site "https://www.chess.com"]

[Event "Titled Tuesday Blitz August 08 Early 2023"]
[White "Lima, Kleyton Alcantara"]
[Black "Araujo Filho, Luiz Antonio Coel"]
[WhiteFideId "22718397"]
[BlackFideId "2130661"]
[WhiteElo "2458"]
[BlackElo "2171"]
[Result "1-0"]
[Round "2"]
[TimeControl "180+1"]
[Date "2023.08.08"]
[WhiteClock "0:00:47"]
[BlackClock "0:00:00"]
[Board "247"]

1. d4 {[%clk 0:03:00]}  f5 {[%clk 0:02:59]} 2. g3 {[%clk 0:02:59]}  Nf6 {[%clk 0:02:59]} 3. Bg2 {[%clk 0:02:59]}  g6 {[%clk 0:02:59]} 4. Nf3 {[%clk 0:02:58]}  Bg7 {[%clk 0:03:00]} 5. O-O {[%clk 0:02:57]}  O-O {[%clk 0:03:01]} 6. b3 {[%clk 0:02:58]}  d6 {[%clk 0:03:01]} 7. Bb2 {[%clk 0:02:58]}  Nc6 {[%clk 0:03:01]} 8. c4 {[%clk 0:02:56]}  Qe8 {[%clk 0:03:01]} 9. d5 {[%clk 0:02:56]}  Nb8 {[%clk 0:02:56]} 10. Nc3 {[%clk 0:02:50]}  c5 {[%clk 0:02:56]} 11. Re1 {[%clk 0:02:45]}  Ne4 {[%clk 0:02:48]} 12. Qc2 {[%clk 0:02:43]}  Nxc3 {[%clk 0:02:12]} 13. Bxc3 {[%clk 0:02:42]}  Bxc3 {[%clk 0:02:10]} 14. Qxc3 {[%clk 0:02:43]}  Qf7 {[%clk 0:02:09]} 15. Ng5 {[%clk 0:02:12]}  Qf6 {[%clk 0:02:06]} 16. Qxf6 {[%clk 0:02:09]}  exf6 {[%clk 0:01:59]} 17. Ne6 {[%clk 0:02:10]}  Bxe6 {[%clk 0:01:57]} 18. dxe6 {[%clk 0:02:11]}  Nc6 {[%clk 0:01:54]} 19. e4 {[%clk 0:02:04]}  f4 {[%clk 0:01:27]} 20. gxf4 {[%clk 0:02:02]}  Rfe8 {[%clk 0:01:26]} 21. f5 {[%clk 0:02:02]}  Nd4 {[%clk 0:01:18]} 22. Rad1 {[%clk 0:01:55]}  gxf5 {[%clk 0:01:18]} 23. exf5 {[%clk 0:01:56]}  Nxf5 {[%clk 0:01:18]} 24. Bxb7 {[%clk 0:01:54]}  Rab8 {[%clk 0:01:15]} 25. Bc6 {[%clk 0:01:51]}  Re7 {[%clk 0:01:13]} 26. Be4 {[%clk 0:01:49]}  Nd4 {[%clk 0:01:10]} 27. Bd5 {[%clk 0:01:48]}  Kg7 {[%clk 0:01:07]} 28. f4 {[%clk 0:01:47]}  f5 {[%clk 0:01:07]} 29. Kf2 {[%clk 0:01:45]}  Kf6 {[%clk 0:01:07]} 30. Re3 {[%clk 0:01:39]}  Rbe8 {[%clk 0:01:00]} 31. Rh3 {[%clk 0:01:36]}  Nxe6 {[%clk 0:00:30]} 32. Bxe6 {[%clk 0:01:28]}  Rxe6 {[%clk 0:00:28]} 33. Rh6+ {[%clk 0:01:29]}  Kg7 {[%clk 0:00:22]} 34. Rxe6 {[%clk 0:01:21]}  Rxe6 {[%clk 0:00:23]} 35. Kf3 {[%clk 0:01:13]}  Kf6 {[%clk 0:00:19]} 36. a3 {[%clk 0:01:10]}  a6 {[%clk 0:00:16]} 37. b4 {[%clk 0:01:09]}  cxb4 {[%clk 0:00:15]} 38. axb4 {[%clk 0:01:10]}  Ke7 {[%clk 0:00:15]} 39. Rd5 {[%clk 0:01:09]}  Re4 {[%clk 0:00:13]} 40. c5 {[%clk 0:01:06]}  dxc5 {[%clk 0:00:04]} 41. bxc5 {[%clk 0:01:07]}  Ke6 {[%clk 0:00:02]} 42. Rd6+ {[%clk 0:01:07]}  Kf7 {[%clk 0:00:01]} 43. Rxa6 {[%clk 0:01:07]}  Rc4 {[%clk 0:00:01]} 44. c6 {[%clk 0:01:03]}  Rc3+ {[%clk 0:00:01]} 45. Kf2 {[%clk 0:01:01]}  h5 {[%clk 0:00:01]} 46. Ra7+ {[%clk 0:00:58]}  Ke6 {[%clk 0:00:01]} 47. c7 {[%clk 0:00:56]}  Kd7 {[%clk 0:00:00]} 48. Kg2 {[%clk 0:00:47]} 1-0


[Site "https://www.chess.com"]

[Event "Titled Tuesday Blitz August 08 Early 2023"]
[White "Mmukka"]
[Black "Mirzanurov, Bulat"]
[BlackFideId "4184521"]
[WhiteElo "2457"]
[BlackElo "2168"]
[Result "1-0"]
[Round "2"]
[TimeControl "180+1"]
[Date "2023.08.08"]
[WhiteClock "0:00:13"]
[BlackClock "0:00:11"]
[Board "248"]

1. e4 {[%clk 0:03:00]}  c5 {[%clk 0:03:00]} 2. Nf3 {[%clk 0:02:59]}  d6 {[%clk 0:03:00]} 3. d4 {[%clk 0:02:59]}  cxd4 {[%clk 0:03:01]} 4. Nxd4 {[%clk 0:03:00]}  Nf6 {[%clk 0:03:02]} 5. Nc3 {[%clk 0:03:00]}  a6 {[%clk 0:03:02]} 6. h3 {[%clk 0:03:00]}  e5 {[%clk 0:03:02]} 7. Nde2 {[%clk 0:03:00]}  h5 {[%clk 0:03:03]} 8. g3 {[%clk 0:03:01]}  Be6 {[%clk 0:03:03]} 9. Bg2 {[%clk 0:03:01]}  Be7 {[%clk 0:03:03]} 10. O-O {[%clk 0:02:58]}  Nbd7 {[%clk 0:03:03]} 11. a4 {[%clk 0:02:56]}  O-O {[%clk 0:03:03]} 12. Be3 {[%clk 0:02:56]}  Qc7 {[%clk 0:03:00]} 13. a5 {[%clk 0:02:46]}  Nc5 {[%clk 0:02:52]} 14. Nd5 {[%clk 0:02:32]}  Nxd5 {[%clk 0:02:49]} 15. exd5 {[%clk 0:02:33]}  Bf5 {[%clk 0:02:49]} 16. c3 {[%clk 0:02:26]}  Qd7 {[%clk 0:02:33]} 17. Kh2 {[%clk 0:02:20]}  Ne4 {[%clk 0:02:30]} 18. f3 {[%clk 0:02:03]}  Nf6 {[%clk 0:02:23]} 19. f4 {[%clk 0:02:02]}  exf4 {[%clk 0:02:14]} 20. Nxf4 {[%clk 0:01:58]}  g6 {[%clk 0:02:13]} 21. Bd4 {[%clk 0:01:55]}  Rfe8 {[%clk 0:01:51]} 22. b4 {[%clk 0:01:29]}  Rac8 {[%clk 0:01:44]} 23. Ra2 {[%clk 0:01:26]}  Be4 {[%clk 0:01:35]} 24. Raf2 {[%clk 0:01:13]}  Bxg2 {[%clk 0:01:34]} 25. Kxg2 {[%clk 0:01:10]}  Ne4 {[%clk 0:01:19]} 26. Rf3 {[%clk 0:01:09]}  Bf8 {[%clk 0:01:14]} 27. Re3 {[%clk 0:00:58]}  Bg7 {[%clk 0:00:53]} 28. Rfe1 {[%clk 0:00:58]}  Nf6 {[%clk 0:00:45]} 29. Qf3 {[%clk 0:00:45]}  Rxe3 {[%clk 0:00:41]} 30. Rxe3 {[%clk 0:00:45]}  Re8 {[%clk 0:00:38]} 31. Rxe8+ {[%clk 0:00:37]}  Qxe8 {[%clk 0:00:37]} 32. c4 {[%clk 0:00:33]}  Qa4 {[%clk 0:00:30]} 33. Nd3 {[%clk 0:00:17]}  Qc2+ {[%clk 0:00:28]} 34. Nf2 {[%clk 0:00:17]}  Nd7 {[%clk 0:00:24]} 35. Bxg7 {[%clk 0:00:17]}  Kxg7 {[%clk 0:00:24]} 36. Qe4 {[%clk 0:00:17]}  Ne5 {[%clk 0:00:24]} 37. c5 {[%clk 0:00:17]}  Qxe4+ {[%clk 0:00:19]} 38. Nxe4 {[%clk 0:00:17]}  dxc5 {[%clk 0:00:19]} 39. Nxc5 {[%clk 0:00:14]}  Kf8 {[%clk 0:00:16]} 40. Nxb7 {[%clk 0:00:14]}  Nd3 {[%clk 0:00:17]} 41. b5 {[%clk 0:00:14]}  Nb4 {[%clk 0:00:12]} 42. b6 {[%clk 0:00:12]}  Nxd5 {[%clk 0:00:12]} 43. Nc5 {[%clk 0:00:12]}  Ne7 {[%clk 0:00:12]} 44. b7 {[%clk 0:00:11]}  Nc6 {[%clk 0:00:12]} 45. Nxa6 {[%clk 0:00:12]}  Ke7 {[%clk 0:00:12]} 46. b8=Q {[%clk 0:00:12]}  Nxb8 {[%clk 0:00:11]} 47. Nxb8 {[%clk 0:00:13]} 1-0


[Site "https://www.chess.com"]

[Event "Titled Tuesday Blitz August 08 Early 2023"]
[White "Jodorcovsky Werjivker, Paulo"]
[Black "Ronka, Erik"]
[WhiteFideId "3700305"]
[BlackFideId "505080"]
[WhiteElo "2167"]
[BlackElo "2455"]
[Result "1-0"]
[Round "2"]
[TimeControl "180+1"]
[Date "2023.08.08"]
[WhiteClock "0:02:07"]
[BlackClock "0:02:17"]
[Board "250"]

1. d4 {[%clk 0:02:59]}  Nf6 {[%clk 0:02:58]} 2. c4 {[%clk 0:02:59]}  e6 {[%clk 0:02:58]} 3. Nc3 {[%clk 0:02:58]}  Bb4 {[%clk 0:02:59]} 4. f3 {[%clk 0:02:59]}  O-O {[%clk 0:02:57]} 5. a3 {[%clk 0:02:57]}  Bxc3+ {[%clk 0:02:55]} 6. bxc3 {[%clk 0:02:58]}  b6 {[%clk 0:02:56]} 7. e4 {[%clk 0:02:58]}  Ne8 {[%clk 0:02:56]} 8. f4 {[%clk 0:02:58]}  Ba6 {[%clk 0:02:55]} 9. Nf3 {[%clk 0:02:58]}  Nc6 {[%clk 0:02:54]} 10. Bd3 {[%clk 0:02:57]}  Na5 {[%clk 0:02:53]} 11. Qe2 {[%clk 0:02:58]}  d5 {[%clk 0:02:52]} 12. cxd5 {[%clk 0:02:20]}  Bxd3 {[%clk 0:02:53]} 13. Qxd3 {[%clk 0:02:20]}  exd5 {[%clk 0:02:54]} 14. e5 {[%clk 0:02:20]}  c5 {[%clk 0:02:52]} 15. O-O {[%clk 0:02:20]}  c4 {[%clk 0:02:51]} 16. Qf5 {[%clk 0:02:15]}  g6 {[%clk 0:02:50]} 17. Qh3 {[%clk 0:02:14]}  f5 {[%clk 0:02:48]} 18. Ng5 {[%clk 0:02:13]}  Qe7 {[%clk 0:02:47]} 19. Qf3 {[%clk 0:02:13]}  Rd8 {[%clk 0:02:46]} 20. a4 {[%clk 0:02:11]}  h6 {[%clk 0:02:31]} 21. Ba3 {[%clk 0:02:11]}  Qd7 {[%clk 0:02:17]} 22. e6 {[%clk 0:02:07]} 1-0


[Site "https://www.chess.com"]

[Event "Titled Tuesday Blitz August 08 Early 2023"]
[White "Mammadzada, Gunay"]
[Black "Baruch, Liam"]
[WhiteFideId "13403729"]
[BlackFideId "14322064"]
[WhiteElo "2453"]
[BlackElo "2167"]
[Result "1-0"]
[Round "2"]
[TimeControl "180+1"]
[Date "2023.08.08"]
[WhiteClock "0:01:44"]
[BlackClock "0:01:59"]
[Board "251"]

1. e4 {[%clk 0:02:53]}  e5 {[%clk 0:03:00]} 2. Nf3 {[%clk 0:02:52]}  Nc6 {[%clk 0:03:00]} 3. Bb5 {[%clk 0:02:51]}  a6 {[%clk 0:03:00]} 4. Ba4 {[%clk 0:02:51]}  Nf6 {[%clk 0:03:01]} 5. O-O {[%clk 0:02:50]}  b5 {[%clk 0:03:01]} 6. Bb3 {[%clk 0:02:48]}  Bc5 {[%clk 0:03:02]} 7. c3 {[%clk 0:02:45]}  d6 {[%clk 0:03:02]} 8. a4 {[%clk 0:02:46]}  Rb8 {[%clk 0:03:02]} 9. d4 {[%clk 0:02:45]}  Bb6 {[%clk 0:03:02]} 10. a5 {[%clk 0:02:45]}  Ba7 {[%clk 0:03:01]} 11. Be3 {[%clk 0:02:41]}  Bg4 {[%clk 0:02:51]} 12. Nbd2 {[%clk 0:02:40]}  exd4 {[%clk 0:02:49]} 13. cxd4 {[%clk 0:02:37]}  Nxd4 {[%clk 0:02:49]} 14. Bxd4 {[%clk 0:02:35]}  Bxd4 {[%clk 0:02:50]} 15. Bxf7+ {[%clk 0:02:35]}  Kxf7 {[%clk 0:02:48]} 16. Qb3+ {[%clk 0:02:34]}  Be6 {[%clk 0:02:47]} 17. Ng5+ {[%clk 0:02:34]}  Kg6 {[%clk 0:02:40]} 18. Nxe6 {[%clk 0:02:24]}  Qe7 {[%clk 0:02:32]} 19. Nxd4 {[%clk 0:02:21]}  Qf7 {[%clk 0:02:21]} 20. Qg3+ {[%clk 0:02:19]}  Kh6 {[%clk 0:02:20]} 21. Nf5+ {[%clk 0:02:18]}  Kh5 {[%clk 0:02:20]} 22. f4 {[%clk 0:01:55]}  h6 {[%clk 0:01:59]} 23. Nxg7+ {[%clk 0:01:44]} 1-0


[Site "https://www.chess.com"]